[Event "Live Chess"]
[Site "Chess.com"]
[Date "2024.06.01"]
[Round "-"]
[White "upoe610"]
[Black "gobbles19"]
[Result "0-1"]
[WhiteElo "2234"]
[BlackElo "2249"]
[TimeControl "300"]
[EndTime "13:48:33 PDT"]
[Termination "gobbles19 won by checkmate"]

1. c4 {[%clk 0:04:57.7]} 1... e5 {[%clk 0:04:58.7]} 2. g3 {[%clk 0:04:56.2]}
2... Bc5 {[%clk 0:04:55.3]} 3. Bg2 {[%clk 0:04:54.1]} 3... Nf6 {[%clk
0:04:54.7]} 4. Nc3 {[%clk 0:04:52.4]} 4... c6 {[%clk 0:04:53.1]} 5. Nf3 {[%clk
0:04:49.9]} 5... d6 {[%clk 0:04:51.2]} 6. d3 {[%clk 0:04:48.4]} 6... O-O {[%clk
0:04:50.3]} 7. Bg5 {[%clk 0:04:46.9]} 7... Nbd7 {[%clk 0:04:46.5]} 8. Ne4 {[%clk
0:04:45.6]} 8... Bb6 {[%clk 0:04:45.4]} 9. O-O {[%clk 0:04:43]} 9... h6 {[%clk
0:04:43.9]} 10. Bxf6 {[%clk 0:04:41.1]} 10... Nxf6 {[%clk 0:04:43.2]} 11. Nxf6+
{[%clk 0:04:27.8]} 11... Qxf6 {[%clk 0:04:43.1]} 12. Nd2 {[%clk 0:04:25.5]}
12... Bf5 {[%clk 0:04:35.9]} 13. Ne4 {[%clk 0:04:24.2]} 13... Qe7 {[%clk
0:04:35.1]} 14. b4 {[%clk 0:04:21.4]} 14... a5 {[%clk 0:04:25]} 15. c5 {[%clk
0:04:19.1]} 15... dxc5 {[%clk 0:04:22.5]} 16. bxc5 {[%clk 0:04:18]} 16... Bxc5
{[%clk 0:04:21.8]} 17. Rb1 {[%clk 0:04:15.1]} 17... Ba7 {[%clk 0:04:10.4]} 18.
Qb3 {[%clk 0:04:11.3]} 18... b5 {[%clk 0:04:03.7]} 19. Rfc1 {[%clk 0:04:09.5]}
19... Rac8 {[%clk 0:04:01.7]} 20. h3 {[%clk 0:04:06.3]} 20... Be6 {[%clk
0:03:56.5]} 21. Qc2 {[%clk 0:04:02.1]} 21... Bd5 {[%clk 0:03:54.3]} 22. Nc5
{[%clk 0:03:40.5]} 22... Bxg2 {[%clk 0:03:51.7]} 23. Kxg2 {[%clk 0:03:38.2]}
23... Rfd8 {[%clk 0:03:49]} 24. Qc3 {[%clk 0:03:17.5]} 24... Rd5 {[%clk
0:03:34.7]} 25. Nb3 {[%clk 0:03:09.3]} 25... e4 {[%clk 0:02:58.6]} 26. Nxa5
{[%clk 0:03:04.3]} 26... exd3 {[%clk 0:02:43]} 27. Nxc6 {[%clk 0:03:02.4]} 27...
Qe4+ {[%clk 0:02:41]} 28. Kg1 {[%clk 0:02:57.3]} 28... Rc5 {[%clk 0:02:17.8]}
29. Qa5 {[%clk 0:02:41]} 29... Rxc1+ {[%clk 0:02:02.9]} 30. Rxc1 {[%clk
0:02:36.2]} 30... Bxf2+ {[%clk 0:01:37.7]} 31. Kxf2 {[%clk 0:02:25.7]} 31...
Qxe2+ {[%clk 0:01:35.5]} 32. Kg1 {[%clk 0:02:25.1]} 32... Qe3+ {[%clk
0:01:34.2]} 33. Kg2 {[%clk 0:02:24.6]} 33... Qxc1 {[%clk 0:01:29.3]} 34. Ne7+
{[%clk 0:02:23.6]} 34... Kh7 {[%clk 0:01:26.4]} 35. Nxc8 {[%clk 0:02:20.1]}
35... Qxc8 {[%clk 0:01:26.3]} 36. Kf3 {[%clk 0:02:19.3]} 36... Qc2 {[%clk
0:01:10.8]} 37. Qxb5 {[%clk 0:02:15.2]} 37... Qe2+ {[%clk 0:01:09.9]} 38. Kf4
{[%clk 0:02:13.1]} 38... g5+ {[%clk 0:01:06.5]} 39. Kf5 {[%clk 0:02:10.1]} 39...
Qe6# {[%clk 0:01:05.3]} 0-1

[Event "Live Chess"]
[Site "Chess.com"]
[Date "2024.06.01"]
[Round "-"]
[White "ACM42"]
[Black "educatedlad"]
[Result "1-0"]
[WhiteElo "2171"]
[BlackElo "1739"]
[TimeControl "300"]
[EndTime "13:48:44 PDT"]
[Termination "ACM42 won by resignation"]

1. e4 {[%clk 0:04:59.1]} 1... Nc6 {[%clk 0:04:57.1]} 2. d4 {[%clk 0:04:57]} 2...
e5 {[%clk 0:04:57]} 3. d5 {[%clk 0:04:55.8]} 3... Nce7 {[%clk 0:04:55.6]} 4. f4
{[%clk 0:04:52.1]} 4... exf4 {[%clk 0:04:52.9]} 5. Bxf4 {[%clk 0:04:49.3]} 5...
Ng6 {[%clk 0:04:50.6]} 6. Bg3 {[%clk 0:04:48.3]} 6... Nf6 {[%clk 0:04:50]} 7.
Bd3 {[%clk 0:04:45.1]} 7... Nh5 {[%clk 0:04:48.4]} 8. Qxh5 {[%clk 0:04:41.1]}
8... Bd6 {[%clk 0:04:46.1]} 9. Bxd6 {[%clk 0:04:38.4]} 9... cxd6 {[%clk
0:04:46]} 10. Nf3 {[%clk 0:04:36.4]} 10... Qa5+ {[%clk 0:04:45.9]} 11. Nc3
{[%clk 0:04:32.4]} 11... Qb6 {[%clk 0:04:45.8]} 12. O-O-O {[%clk 0:04:30.7]} 1-0

[Event "Live Chess"]
[Site "Chess.com"]
[Date "2024.06.01"]
[Round "-"]
[White "StoreySniper"]
[Black "Bradfield133"]
[Result "1-0"]
[WhiteElo "2535"]
[BlackElo "1891"]
[TimeControl "300"]
[EndTime "13:48:46 PDT"]
[Termination "StoreySniper won by resignation"]

1. d4 {[%clk 0:04:56.7]} 1... d6 {[%clk 0:04:58.4]} 2. Nf3 {[%clk 0:04:55.2]}
2... f5 {[%clk 0:04:56.6]} 3. Nc3 {[%clk 0:04:49.1]} 3... Nf6 {[%clk 0:04:54.9]}
4. Bg5 {[%clk 0:04:46]} 4... Nbd7 {[%clk 0:04:53]} 5. e3 {[%clk 0:04:40.3]} 5...
g6 {[%clk 0:04:42.4]} 6. Bd3 {[%clk 0:04:36.1]} 6... Bg7 {[%clk 0:04:40.9]} 7.
e4 {[%clk 0:04:31.5]} 7... fxe4 {[%clk 0:04:37.2]} 8. Nxe4 {[%clk 0:04:31.4]}
8... Nxe4 {[%clk 0:04:35.9]} 9. Bxe4 {[%clk 0:04:28]} 9... Nf6 {[%clk
0:04:34.8]} 10. Bxf6 {[%clk 0:04:19.4]} 10... Bxf6 {[%clk 0:04:32.4]} 11. Qd3
{[%clk 0:04:17.5]} 11... c6 {[%clk 0:04:17.7]} 12. O-O {[%clk 0:04:12.4]} 12...
Qa5 {[%clk 0:03:51.6]} 13. Rae1 {[%clk 0:04:04.9]} 13... Bf5 {[%clk 0:03:44.2]}
14. Bxf5 {[%clk 0:04:03.5]} 14... Qxf5 {[%clk 0:03:42.2]} 15. Qb3 {[%clk
0:04:01.9]} 15... O-O-O {[%clk 0:03:37.8]} 16. c4 {[%clk 0:03:55.2]} 16... g5
{[%clk 0:03:28.4]} 17. d5 {[%clk 0:03:43.8]} 17... g4 {[%clk 0:03:18.7]} 18. Nd2
{[%clk 0:03:42.3]} 18... Be5 {[%clk 0:03:06.5]} 19. dxc6 {[%clk 0:03:34.3]}
19... bxc6 {[%clk 0:03:02.1]} 20. Qa4 {[%clk 0:03:24.4]} 20... Kb7 {[%clk
0:02:18.4]} 21. Nb3 {[%clk 0:03:19.9]} 21... Qd7 {[%clk 0:01:16.7]} 22. Rxe5
{[%clk 0:03:08.7]} 1-0

[Event "Live Chess"]
[Site "Chess.com"]
[Date "2024.06.01"]
[Round "-"]
[White "Cimon"]
[Black "booktrunk"]
[Result "1-0"]
[WhiteElo "1828"]
[BlackElo "1395"]
[TimeControl "300"]
[EndTime "13:48:51 PDT"]
[Termination "Cimon won by checkmate"]

1. d4 {[%clk 0:04:57.2]} 1... b6 {[%clk 0:04:57.4]} 2. e4 {[%clk 0:04:54.1]}
2... Bb7 {[%clk 0:04:45.9]} 3. Nd2 {[%clk 0:04:52.6]} 3... e6 {[%clk 0:04:41.2]}
4. Ngf3 {[%clk 0:04:47.8]} 4... h6 {[%clk 0:04:40.7]} 5. Bd3 {[%clk 0:04:41.9]}
5... Nf6 {[%clk 0:04:38]} 6. Qe2 {[%clk 0:04:38.7]} 6... Be7 {[%clk 0:04:35.3]}
7. c3 {[%clk 0:04:31.8]} 7... d6 {[%clk 0:04:34.5]} 8. O-O {[%clk 0:04:28.9]}
8... Nbd7 {[%clk 0:04:34.4]} 9. c4 {[%clk 0:04:24.9]} 9... O-O {[%clk
0:04:32.7]} 10. h3 {[%clk 0:04:21.9]} 10... Kh8 {[%clk 0:04:30.5]} 11. e5 {[%clk
0:04:19.2]} 11... Ng8 {[%clk 0:04:30.4]} 12. Ne4 {[%clk 0:03:54.1]} 12... dxe5
{[%clk 0:04:21.7]} 13. dxe5 {[%clk 0:03:47.3]} 13... Rb8 {[%clk 0:04:08.3]} 14.
Rd1 {[%clk 0:03:44.5]} 14... Qe8 {[%clk 0:04:03.5]} 15. a3 {[%clk 0:03:30]}
15... Nc5 {[%clk 0:04:02.2]} 16. Nxc5 {[%clk 0:03:27.2]} 16... Bxc5 {[%clk
0:04:00.2]} 17. b4 {[%clk 0:03:23.8]} 17... Bxf3 {[%clk 0:03:55.9]} 18. Qxf3
{[%clk 0:03:21.6]} 18... Be7 {[%clk 0:03:54.2]} 19. Qe4 {[%clk 0:03:17]} 19...
g6 {[%clk 0:03:50.2]} 20. Be3 {[%clk 0:03:06]} 20... f5 {[%clk 0:03:48.5]} 21.
exf6 {[%clk 0:03:03.1]} 21... Rxf6 {[%clk 0:03:45.3]} 22. Bd4 {[%clk 0:02:59.5]}
22... Qf7 {[%clk 0:03:41.6]} 23. Rac1 {[%clk 0:02:35.9]} 23... Kh7 {[%clk
0:03:38.3]} 24. Bxf6 {[%clk 0:02:33.8]} 24... Nxf6 {[%clk 0:03:36.2]} 25. Qe3
{[%clk 0:02:23.3]} 25... Bd6 {[%clk 0:03:34]} 26. c5 {[%clk 0:02:15.9]} 26...
bxc5 {[%clk 0:03:31.9]} 27. bxc5 {[%clk 0:02:14.5]} 27... Be7 {[%clk 0:03:29.5]}
28. Rb1 {[%clk 0:02:07.5]} 28... Rxb1 {[%clk 0:03:23.4]} 29. Rxb1 {[%clk
0:02:06.1]} 29... Nd5 {[%clk 0:03:22]} 30. Qd4 {[%clk 0:01:56.1]} 30... Bf6
{[%clk 0:03:18.7]} 31. Qa4 {[%clk 0:01:43.3]} 31... Nc3 {[%clk 0:03:16.5]} 32.
Qxa7 {[%clk 0:01:39.9]} 32... Nxb1 {[%clk 0:03:15.1]} 33. Bxb1 {[%clk
0:01:38.6]} 33... Qd7 {[%clk 0:03:13]} 34. Kh2 {[%clk 0:01:31.9]} 34... Bd4
{[%clk 0:03:10.7]} 35. Be4 {[%clk 0:01:24.7]} 35... Be5+ {[%clk 0:03:05.4]} 36.
g3 {[%clk 0:01:22.8]} 36... Qd2 {[%clk 0:03:02.6]} 37. Kg2 {[%clk 0:01:19.4]}
37... Qd4 {[%clk 0:02:56.3]} 38. Bf3 {[%clk 0:01:06.4]} 38... Bd6 {[%clk
0:02:48]} 39. Qa6 {[%clk 0:00:39.7]} 39... Bxc5 {[%clk 0:02:41.5]} 40. Qe2
{[%clk 0:00:38.2]} 40... e5 {[%clk 0:02:33]} 41. Be4 {[%clk 0:00:35.9]} 41...
Bxa3 {[%clk 0:02:27.8]} 42. Qf3 {[%clk 0:00:34.3]} 42... Kg7 {[%clk 0:02:07.3]}
43. Bd5 {[%clk 0:00:29.5]} 43... h5 {[%clk 0:01:26.8]} 44. Qf7+ {[%clk
0:00:25.2]} 44... Kh6 {[%clk 0:01:25.5]} 45. h4 {[%clk 0:00:18.2]} 45... Bc5
{[%clk 0:01:08]} 46. Be6 {[%clk 0:00:10.5]} 46... Qe4+ {[%clk 0:01:04]} 47. Kh2
{[%clk 0:00:09.4]} 47... Qc6 {[%clk 0:00:44.7]} 48. Qg8 {[%clk 0:00:07.8]} 48...
Bf8 {[%clk 0:00:35.5]} 49. Qh8# {[%clk 0:00:06]} 1-0

[Event "Live Chess"]
[Site "Chess.com"]
[Date "2024.06.01"]
[Round "-"]
[White "alicechristina"]
[Black "Stanbad1"]
[Result "0-1"]
[WhiteElo "1933"]
[BlackElo "2638"]
[TimeControl "300"]
[EndTime "13:48:52 PDT"]
[Termination "Stanbad1 won by resignation"]

1. c4 {[%clk 0:04:47.4]} 1... Nf6 {[%clk 0:04:58.7]} 2. Nc3 {[%clk 0:04:47]}
2... g6 {[%clk 0:04:58.1]} 3. e4 {[%clk 0:04:46.1]} 3... Bg7 {[%clk 0:04:56.4]}
4. g3 {[%clk 0:04:46]} 4... d6 {[%clk 0:04:50.7]} 5. Bg2 {[%clk 0:04:43.5]} 5...
O-O {[%clk 0:04:50.6]} 6. Nge2 {[%clk 0:04:43]} 6... c5 {[%clk 0:04:48.5]} 7.
O-O {[%clk 0:04:41.1]} 7... Nc6 {[%clk 0:04:44.8]} 8. Rb1 {[%clk 0:04:38.1]}
8... Rb8 {[%clk 0:04:40.7]} 9. a3 {[%clk 0:04:37.1]} 9... a6 {[%clk 0:04:37.8]}
10. b4 {[%clk 0:04:35.9]} 10... cxb4 {[%clk 0:04:37.2]} 11. axb4 {[%clk
0:04:32.3]} 11... b5 {[%clk 0:04:37.1]} 12. cxb5 {[%clk 0:04:30.3]} 12... axb5
{[%clk 0:04:37]} 13. d4 {[%clk 0:04:28.3]} 13... Bg4 {[%clk 0:04:35.3]} 14. d5
{[%clk 0:04:26.5]} 14... Ne5 {[%clk 0:04:33.8]} 15. f4 {[%clk 0:04:25.5]} 15...
Nc4 {[%clk 0:04:24.2]} 16. h3 {[%clk 0:04:13.2]} 16... Bxe2 {[%clk 0:04:22]} 17.
Qxe2 {[%clk 0:04:11.7]} 17... Nh5 {[%clk 0:04:21]} 18. Qf3 {[%clk 0:04:07.8]}
18... f5 {[%clk 0:04:17]} 19. g4 {[%clk 0:04:05.2]} 19... fxg4 {[%clk
0:04:15.5]} 20. hxg4 {[%clk 0:04:04]} 20... Nxf4 {[%clk 0:04:14]} 21. Bxf4
{[%clk 0:04:01.7]} 21... g5 {[%clk 0:04:13.6]} 22. Ne2 {[%clk 0:03:52.8]} 22...
gxf4 {[%clk 0:04:11.7]} 23. Nxf4 {[%clk 0:03:50.4]} 23... Nd2 {[%clk 0:04:10.8]}
24. Qg3 {[%clk 0:03:47.7]} 24... Nxf1 {[%clk 0:04:09.6]} 25. Bxf1 {[%clk
0:03:46]} 25... Be5 {[%clk 0:04:08.7]} 0-1

[Event "Live Chess"]
[Site "Chess.com"]
[Date "2024.06.01"]
[Round "-"]
[White "kylet1990"]
[Black "road2gm5000"]
[Result "0-1"]
[WhiteElo "736"]
[BlackElo "1082"]
[TimeControl "300"]
[EndTime "13:48:52 PDT"]
[Termination "road2gm5000 won by checkmate"]

1. e4 {[%clk 0:04:59.7]} 1... c6 {[%clk 0:04:57.6]} 2. Nc3 {[%clk 0:04:58.2]}
2... d5 {[%clk 0:04:57]} 3. exd5 {[%clk 0:04:56.8]} 3... cxd5 {[%clk 0:04:56.9]}
4. Nf3 {[%clk 0:04:55.9]} 4... Bg4 {[%clk 0:04:55.3]} 5. d4 {[%clk 0:04:54.7]}
5... Nc6 {[%clk 0:04:54.6]} 6. Bf4 {[%clk 0:04:52.9]} 6... Nf6 {[%clk
0:04:53.3]} 7. h3 {[%clk 0:04:52]} 7... Bxf3 {[%clk 0:04:51.5]} 8. Qxf3 {[%clk
0:04:51.3]} 8... e6 {[%clk 0:04:51.4]} 9. O-O-O {[%clk 0:04:49.5]} 9... Bd6
{[%clk 0:04:49.4]} 10. Bxd6 {[%clk 0:04:48.1]} 10... Qxd6 {[%clk 0:04:49.3]} 11.
Bb5 {[%clk 0:04:47.1]} 11... O-O {[%clk 0:04:45.7]} 12. Bxc6 {[%clk 0:04:45.3]}
12... Qxc6 {[%clk 0:04:43.1]} 13. g4 {[%clk 0:04:40.1]} 13... Rac8 {[%clk
0:04:41.2]} 14. h4 {[%clk 0:04:37.5]} 14... b5 {[%clk 0:04:39.6]} 15. g5 {[%clk
0:04:35.5]} 15... Nd7 {[%clk 0:04:37.1]} 16. h5 {[%clk 0:04:24.3]} 16... b4
{[%clk 0:04:36.1]} 17. b3 {[%clk 0:03:55.4]} 17... Qxc3 {[%clk 0:04:26.1]} 18.
Rd2 {[%clk 0:03:45.6]} 18... Qa1# {[%clk 0:04:23.9]} 0-1

[Event "Live Chess"]
[Site "Chess.com"]
[Date "2024.06.01"]
[Round "-"]
[White "Kyrylo7770"]
[Black "chessfiction"]
[Result "0-1"]
[WhiteElo "1632"]
[BlackElo "2374"]
[TimeControl "300"]
[EndTime "13:49:18 PDT"]
[Termination "chessfiction won by checkmate"]

1. d4 {[%clk 0:04:58.9]} 1... Nf6 {[%clk 0:04:57.1]} 2. Nf3 {[%clk 0:04:58.1]}
2... g6 {[%clk 0:04:57]} 3. c4 {[%clk 0:04:56.8]} 3... Bg7 {[%clk 0:04:56.9]} 4.
Bg5 {[%clk 0:04:56.3]} 4... O-O {[%clk 0:04:56.8]} 5. h4 {[%clk 0:04:55.8]} 5...
h6 {[%clk 0:04:53.6]} 6. Bxf6 {[%clk 0:04:55.1]} 6... Bxf6 {[%clk 0:04:53.5]} 7.
h5 {[%clk 0:04:54.8]} 7... g5 {[%clk 0:04:52.4]} 8. e3 {[%clk 0:04:54.3]} 8...
Re8 {[%clk 0:04:48.2]} 9. Bd3 {[%clk 0:04:53.6]} 9... d6 {[%clk 0:04:47.3]} 10.
O-O {[%clk 0:04:52.8]} 10... Nc6 {[%clk 0:04:45.7]} 11. Bc2 {[%clk 0:04:52.3]}
11... e5 {[%clk 0:04:43.3]} 12. dxe5 {[%clk 0:04:50.8]} 12... dxe5 {[%clk
0:04:42.2]} 13. Nc3 {[%clk 0:04:42.7]} 13... Be6 {[%clk 0:04:39.8]} 14. Qd3
{[%clk 0:04:42.2]} 14... Qxd3 {[%clk 0:04:32.8]} 15. Bxd3 {[%clk 0:04:41.1]}
15... Nb4 {[%clk 0:04:27.3]} 16. Be2 {[%clk 0:04:36.8]} 16... Bg4 {[%clk
0:04:21.6]} 17. Ne4 {[%clk 0:04:34.9]} 17... Bg7 {[%clk 0:04:20.1]} 18. b3
{[%clk 0:04:31.1]} 18... f5 {[%clk 0:04:17.6]} 19. Nc5 {[%clk 0:04:30.1]} 19...
e4 {[%clk 0:04:16]} 20. Rfd1 {[%clk 0:04:17.9]} 20... exf3 {[%clk 0:04:11.9]}
21. gxf3 {[%clk 0:04:17.8]} 21... Bxh5 {[%clk 0:04:11.2]} 22. Kg2 {[%clk
0:04:17.2]} 22... Bxa1 {[%clk 0:04:09.5]} 23. Rxa1 {[%clk 0:04:16.1]} 23... Rad8
{[%clk 0:04:08.9]} 24. Nxb7 {[%clk 0:04:14.2]} 24... Rd2 {[%clk 0:04:06.8]} 25.
Bf1 {[%clk 0:04:13.5]} 25... Nc2 {[%clk 0:04:05.7]} 26. Rc1 {[%clk 0:04:12.2]}
26... Nxe3+ {[%clk 0:04:03.9]} 27. Kg3 {[%clk 0:04:10.7]} 27... Nxf1+ {[%clk
0:04:03.2]} 28. Rxf1 {[%clk 0:04:09.7]} 28... f4+ {[%clk 0:04:03.1]} 29. Kg2
{[%clk 0:04:08.3]} 29... Ree2 {[%clk 0:04:01.6]} 30. Nc5 {[%clk 0:04:06.1]}
30... g4 {[%clk 0:04:00.1]} 31. fxg4 {[%clk 0:04:04.3]} 31... Bxg4 {[%clk
0:04:00]} 32. Na4 {[%clk 0:03:58.3]} 32... h5 {[%clk 0:03:55.8]} 33. Nc3 {[%clk
0:03:57.2]} 33... h4 {[%clk 0:03:54.9]} 34. Nxe2 {[%clk 0:03:56.5]} 34... Rxe2
{[%clk 0:03:54.7]} 35. Rd1 {[%clk 0:03:54.1]} 35... Rxf2+ {[%clk 0:03:53.2]} 36.
Kxf2 {[%clk 0:03:53.2]} 36... Bxd1 {[%clk 0:03:53.1]} 37. Ke1 {[%clk 0:03:51.9]}
37... h3 {[%clk 0:03:52.1]} 38. Kf2 {[%clk 0:03:51.8]} 38... h2 {[%clk 0:03:52]}
39. Kg2 {[%clk 0:03:49.6]} 39... Kf7 {[%clk 0:03:47.9]} 40. a4 {[%clk
0:03:48.2]} 40... Kf6 {[%clk 0:03:47.1]} 41. b4 {[%clk 0:03:47.6]} 41... Ke5
{[%clk 0:03:46.6]} 42. c5 {[%clk 0:03:47.3]} 42... Kd5 {[%clk 0:03:45.8]} 43.
Kxh2 {[%clk 0:03:46.5]} 43... Kc4 {[%clk 0:03:44.9]} 44. Kg2 {[%clk 0:03:46.3]}
44... Kxb4 {[%clk 0:03:44.2]} 45. Kf2 {[%clk 0:03:46.1]} 45... Kxc5 {[%clk
0:03:44]} 46. Ke1 {[%clk 0:03:46]} 46... Kb4 {[%clk 0:03:43.9]} 47. Kxd1 {[%clk
0:03:45.6]} 47... Kxa4 {[%clk 0:03:43.8]} 48. Ke2 {[%clk 0:03:45.5]} 48... Kb3
{[%clk 0:03:43.7]} 49. Kf3 {[%clk 0:03:45.4]} 49... c5 {[%clk 0:03:42.7]} 50.
Kxf4 {[%clk 0:03:45.3]} 50... c4 {[%clk 0:03:42.6]} 51. Ke3 {[%clk 0:03:45]}
51... c3 {[%clk 0:03:42.5]} 52. Kd3 {[%clk 0:03:44]} 52... Kb2 {[%clk
0:03:42.4]} 53. Ke2 {[%clk 0:03:42.8]} 53... c2 {[%clk 0:03:42.3]} 54. Ke3
{[%clk 0:03:42.1]} 54... a5 {[%clk 0:03:42.2]} 55. Kd4 {[%clk 0:03:42]} 55... a4
{[%clk 0:03:41.7]} 56. Kc4 {[%clk 0:03:41.9]} 56... a3 {[%clk 0:03:41.6]} 57.
Kb4 {[%clk 0:03:41]} 57... a2 {[%clk 0:03:41.5]} 58. Kb5 {[%clk 0:03:40.1]}
58... a1=Q {[%clk 0:03:41.4]} 59. Kb4 {[%clk 0:03:39.8]} 59... c1=Q {[%clk
0:03:41.1]} 60. Kb5 {[%clk 0:03:38.7]} 60... Qg5+ {[%clk 0:03:38.9]} 61. Kb6
{[%clk 0:03:38.6]} 61... Qaa5+ {[%clk 0:03:37.4]} 62. Kb7 {[%clk 0:03:37.3]}
62... Qgd5+ {[%clk 0:03:36.4]} 63. Kb8 {[%clk 0:03:36.3]} 63... Qb6+ {[%clk
0:03:35.5]} 64. Kc8 {[%clk 0:03:34]} 64... Qde6# {[%clk 0:03:34.6]} 0-1

[Event "Live Chess"]
[Site "Chess.com"]
[Date "2024.06.01"]
[Round "-"]
[White "Ferrarifan27"]
[Black "cymbalshift"]
[Result "1-0"]
[WhiteElo "2059"]
[BlackElo "1590"]
[TimeControl "300"]
[EndTime "13:49:29 PDT"]
[Termination "Ferrarifan27 won by resignation"]

1. e4 {[%clk 0:04:57.2]} 1... e5 {[%clk 0:04:58.9]} 2. Nf3 {[%clk 0:04:53.9]}
2... Nc6 {[%clk 0:04:57.8]} 3. Bb5 {[%clk 0:04:51.6]} 3... a6 {[%clk 0:04:56.9]}
4. Ba4 {[%clk 0:04:50.3]} 4... Nf6 {[%clk 0:04:55.9]} 5. O-O {[%clk 0:04:47.1]}
5... Be7 {[%clk 0:04:55.3]} 6. Re1 {[%clk 0:04:45.5]} 6... b5 {[%clk 0:04:54.6]}
7. Bb3 {[%clk 0:04:43.7]} 7... d6 {[%clk 0:04:53.8]} 8. c3 {[%clk 0:04:41.9]}
8... O-O {[%clk 0:04:52.7]} 9. h3 {[%clk 0:04:41.4]} 9... Na5 {[%clk 0:04:50.5]}
10. Bc2 {[%clk 0:04:40]} 10... c5 {[%clk 0:04:50.2]} 11. d4 {[%clk 0:04:36.5]}
11... Qc7 {[%clk 0:04:36.1]} 12. Nbd2 {[%clk 0:04:30.7]} 12... Bd7 {[%clk
0:04:28.9]} 13. Nf1 {[%clk 0:04:27.9]} 13... Rfc8 {[%clk 0:04:24.4]} 14. d5
{[%clk 0:04:15.6]} 14... Nc4 {[%clk 0:04:22.3]} 15. Ng3 {[%clk 0:04:12.9]} 15...
Bf8 {[%clk 0:04:11.7]} 16. b3 {[%clk 0:04:08.5]} 16... Nb6 {[%clk 0:04:09.7]}
17. Bg5 {[%clk 0:04:07.3]} 17... Qd8 {[%clk 0:04:02.9]} 18. Nh5 {[%clk
0:04:03.2]} 18... Be7 {[%clk 0:03:59.3]} 19. Ng3 {[%clk 0:03:54.9]} 19... h6
{[%clk 0:03:53.3]} 20. Be3 {[%clk 0:03:52.9]} 20... Bf8 {[%clk 0:03:52]} 21. Qd2
{[%clk 0:03:50.6]} 21... Kh7 {[%clk 0:03:23.2]} 22. a4 {[%clk 0:03:40.8]} 22...
g6 {[%clk 0:03:18]} 23. a5 {[%clk 0:03:30.7]} 1-0

[Event "Live Chess"]
[Site "Chess.com"]
[Date "2024.06.01"]
[Round "-"]
[White "Pablo_dmp"]
[Black "Tushinskiy"]
[Result "0-1"]
[WhiteElo "2009"]
[BlackElo "2268"]
[TimeControl "300"]
[EndTime "13:50:03 PDT"]
[Termination "Tushinskiy won by resignation"]

1. e4 {[%clk 0:04:58.9]} 1... e5 {[%clk 0:04:51.4]} 2. Nf3 {[%clk 0:04:57.8]}
2... d6 {[%clk 0:04:51.3]} 3. Bc4 {[%clk 0:04:55]} 3... Bg4 {[%clk 0:04:48.7]}
4. Nc3 {[%clk 0:04:48.7]} 4... Nf6 {[%clk 0:04:47.2]} 5. h3 {[%clk 0:04:39]}
5... Bh5 {[%clk 0:04:41.5]} 6. g4 {[%clk 0:04:37.8]} 6... Bg6 {[%clk 0:04:31.8]}
7. d3 {[%clk 0:04:34.2]} 7... Nbd7 {[%clk 0:04:28.9]} 8. Rg1 {[%clk 0:04:29.3]}
8... Be7 {[%clk 0:04:22.5]} 9. h4 {[%clk 0:04:21.1]} 9... h5 {[%clk 0:04:20.7]}
10. g5 {[%clk 0:04:19.4]} 10... Bh7 {[%clk 0:04:18.5]} 11. gxf6 {[%clk
0:04:17.5]} 11... Bxf6 {[%clk 0:04:18.4]} 12. Bg5 {[%clk 0:04:15.5]} 12... c6
{[%clk 0:04:15.9]} 13. Bxf6 {[%clk 0:04:14.6]} 13... Qxf6 {[%clk 0:04:11]} 14.
Ng5 {[%clk 0:04:10.3]} 14... Bg6 {[%clk 0:04:09.8]} 15. Qf3 {[%clk 0:04:07]}
15... Qe7 {[%clk 0:04:02.3]} 16. O-O-O {[%clk 0:04:01.3]} 16... Nf6 {[%clk
0:03:56.8]} 17. Ne6 {[%clk 0:03:50.2]} 17... fxe6 {[%clk 0:03:46.9]} 18. Rxg6
{[%clk 0:03:48.8]} 18... d5 {[%clk 0:03:42.6]} 19. exd5 {[%clk 0:03:46.3]} 19...
exd5 {[%clk 0:03:42.5]} 20. Bb3 {[%clk 0:03:43]} 20... O-O-O {[%clk 0:03:39.9]}
21. Rdg1 {[%clk 0:03:38.7]} 21... Rhg8 {[%clk 0:03:37.6]} 22. Qf5+ {[%clk
0:03:34.5]} 22... Kb8 {[%clk 0:03:33.9]} 23. Re1 {[%clk 0:03:30.3]} 23... Rde8
{[%clk 0:03:31.6]} 24. Rg5 {[%clk 0:03:27.2]} 24... Rgf8 {[%clk 0:03:24.7]} 25.
Rxe5 {[%clk 0:03:24.2]} 25... Qc7 {[%clk 0:03:23.9]} 26. Rxe8+ {[%clk
0:03:22.5]} 26... Rxe8 {[%clk 0:03:23.8]} 27. Nd1 {[%clk 0:03:07.2]} 27... a6
{[%clk 0:03:15]} 28. Qf3 {[%clk 0:03:05.1]} 28... Ka8 {[%clk 0:03:13]} 29. Ne3
{[%clk 0:02:59.1]} 29... Qh2 {[%clk 0:03:05]} 30. Rxg7 {[%clk 0:02:50.6]} 30...
Qxh4 {[%clk 0:03:02.6]} 31. Rg1 {[%clk 0:02:38.8]} 31... Qh2 {[%clk 0:02:57.1]}
32. Rd1 {[%clk 0:02:34]} 32... Qe5 {[%clk 0:02:44]} 33. d4 {[%clk 0:02:29.9]}
33... Qe6 {[%clk 0:02:41.2]} 34. Qf5 {[%clk 0:02:25.8]} 34... Qe7 {[%clk
0:02:37.3]} 35. c3 {[%clk 0:02:17.2]} 35... Rf8 {[%clk 0:02:30.3]} 36. Qe5
{[%clk 0:02:08.4]} 36... Qd8 {[%clk 0:02:27.2]} 37. Nf5 {[%clk 0:02:02.4]} 37...
Ne4 {[%clk 0:02:24.2]} 38. Qe7 {[%clk 0:01:57.2]} 38... Qxe7 {[%clk 0:02:16.2]}
39. Nxe7 {[%clk 0:01:57.1]} 39... Rxf2 {[%clk 0:02:15.3]} 40. Nxd5 {[%clk
0:01:30.2]} 40... cxd5 {[%clk 0:02:12.2]} 41. Bxd5 {[%clk 0:01:30.1]} 41... Ng3
{[%clk 0:02:10.7]} 42. Rg1 {[%clk 0:01:27.7]} 42... Ne2+ {[%clk 0:02:08.8]} 43.
Kb1 {[%clk 0:01:26.2]} 43... Nxg1 {[%clk 0:02:08.7]} 0-1